[Event "Titled Tuesday Blitz April 4 Late 2023"]
[White "Grycel, Kamil"]
[Black "Muhammad, Shahzeb"]
[WhiteFideId "1115499"]
[BlackFideId "7804806"]
[WhiteElo "2518"]
[BlackElo "1902"]
[Result "1-0"]
[Round "02"]
[TimeControl "180+2"]
[Date "2023.04.04"]
[WhiteClock "0:00:08"]
[BlackClock "0:00:01"]

1. d4 {[%clk 0:03:00]}  Nf6 {[%clk 0:02:59]} 2. Nf3 {[%clk 0:03:00]}  e6 {[%clk 0:03:00]} 3. Bf4 {[%clk 0:03:00]}  d5 {[%clk 0:03:00]} 4. c3 {[%clk 0:02:59]}  Bd6 {[%clk 0:03:01]} 5. Bg3 {[%clk 0:02:58]}  O-O {[%clk 0:03:00]} 6. e3 {[%clk 0:02:58]}  c5 {[%clk 0:03:00]} 7. Nbd2 {[%clk 0:02:57]}  Qc7 {[%clk 0:03:01]} 8. Bd3 {[%clk 0:02:55]}  Nbd7 {[%clk 0:03:01]} 9. O-O {[%clk 0:02:41]}  e5 {[%clk 0:03:00]} 10. e4 {[%clk 0:02:26]}  exd4 {[%clk 0:02:45]} 11. cxd4 {[%clk 0:02:15]}  Bxg3 {[%clk 0:02:45]} 12. hxg3 {[%clk 0:02:15]}  dxe4 {[%clk 0:02:35]} 13. Nxe4 {[%clk 0:02:13]}  Nxe4 {[%clk 0:02:33]} 14. Bxe4 {[%clk 0:02:14]}  Nf6 {[%clk 0:02:34]} 15. Re1 {[%clk 0:02:03]}  cxd4 {[%clk 0:02:30]} 16. Rc1 {[%clk 0:01:52]}  Qa5 {[%clk 0:02:13]} 17. Qxd4 {[%clk 0:01:49]}  Qxa2 {[%clk 0:02:04]} 18. Bb1 {[%clk 0:01:39]}  Qa5 {[%clk 0:01:58]} 19. Re7 {[%clk 0:01:20]}  Rd8 {[%clk 0:01:39]} 20. Qf4 {[%clk 0:01:13]}  h6 {[%clk 0:01:19]} 21. g4 {[%clk 0:01:10]}  Bxg4 {[%clk 0:01:16]} 22. Ne5 {[%clk 0:01:07]}  Be6 {[%clk 0:00:55]} 23. Rxe6 {[%clk 0:00:57]}  fxe6 {[%clk 0:00:54]} 24. b4 {[%clk 0:00:51]}  Qd5 {[%clk 0:00:48]} 25. Ng6 {[%clk 0:00:46]}  Qd2 {[%clk 0:00:41]} 26. Qc7 {[%clk 0:00:43]}  Rd7 {[%clk 0:00:34]} 27. Qc4 {[%clk 0:00:41]}  Qd5 {[%clk 0:00:27]} 28. Qe2 {[%clk 0:00:40]}  Rad8 {[%clk 0:00:19]} 29. Ba2 {[%clk 0:00:40]}  Qd2 {[%clk 0:00:13]} 30. Qxe6+ {[%clk 0:00:20]}  Kh7 {[%clk 0:00:12]} 31. Rf1 {[%clk 0:00:15]}  Kxg6 {[%clk 0:00:06]} 32. Bb1+ {[%clk 0:00:16]}  Rd3 {[%clk 0:00:04]} 33. f4 {[%clk 0:00:12]}  Kh7 {[%clk 0:00:02]} 34. Qf5+ {[%clk 0:00:10]}  Kh8 {[%clk 0:00:01]} 35. Qg6 {[%clk 0:00:10]}  Qe3+ {[%clk 0:00:01]} 36. Kh1 {[%clk 0:00:10]}  Qd4 {[%clk 0:00:01]} 37. Re1 {[%clk 0:00:08]} 1-0


[Site "https://www.chess.com"]

[Event "Titled Tuesday Blitz April 4 Late 2023"]
[White "Vifleemskaia, Svetlana"]
[Black "Vovk, Orest"]
[WhiteFideId "4129490"]
[BlackFideId "14113490"]
[WhiteElo "1930"]
[BlackElo "2215"]
[Result "0-1"]
[Round "02"]
[TimeControl "180+2"]
[Date "2023.04.04"]
[WhiteClock "0:00:03"]
[BlackClock "0:00:08"]

1. d4 {[%clk 0:02:54]}  e5 {[%clk 0:02:54]} 2. dxe5 {[%clk 0:02:53]}  Nc6 {[%clk 0:02:53]} 3. Nf3 {[%clk 0:02:54]}  Qe7 {[%clk 0:02:53]} 4. Bf4 {[%clk 0:02:45]}  Qb4+ {[%clk 0:02:48]} 5. Bd2 {[%clk 0:02:45]}  Qxb2 {[%clk 0:02:49]} 6. Nc3 {[%clk 0:02:45]}  Bb4 {[%clk 0:02:49]} 7. Rb1 {[%clk 0:02:44]}  Qxc3 {[%clk 0:02:49]} 8. Bxc3 {[%clk 0:02:42]}  Bxc3+ {[%clk 0:02:50]} 9. Nd2 {[%clk 0:02:42]}  Nxe5 {[%clk 0:02:50]} 10. e3 {[%clk 0:02:40]}  Nf6 {[%clk 0:02:51]} 11. Bd3 {[%clk 0:02:38]}  d5 {[%clk 0:02:51]} 12. O-O {[%clk 0:02:38]}  O-O {[%clk 0:02:51]} 13. h3 {[%clk 0:02:34]}  c6 {[%clk 0:02:52]} 14. Nf3 {[%clk 0:02:33]}  Nxf3+ {[%clk 0:02:51]} 15. Qxf3 {[%clk 0:02:32]}  b5 {[%clk 0:02:52]} 16. e4 {[%clk 0:02:26]}  dxe4 {[%clk 0:02:50]} 17. Bxe4 {[%clk 0:02:26]}  Nxe4 {[%clk 0:02:51]} 18. Qxe4 {[%clk 0:02:25]}  Be6 {[%clk 0:02:40]} 19. Qxc6 {[%clk 0:02:13]}  b4 {[%clk 0:02:40]} 20. a3 {[%clk 0:02:09]}  a5 {[%clk 0:02:37]} 21. axb4 {[%clk 0:02:02]}  axb4 {[%clk 0:02:38]} 22. Rfd1 {[%clk 0:01:56]}  Bf5 {[%clk 0:02:23]} 23. Rdc1 {[%clk 0:01:43]}  Rab8 {[%clk 0:01:54]} 24. Qd5 {[%clk 0:01:31]}  Bg6 {[%clk 0:01:51]} 25. h4 {[%clk 0:01:28]}  Rfd8 {[%clk 0:01:49]} 26. Qc4 {[%clk 0:01:22]}  h6 {[%clk 0:01:44]} 27. g3 {[%clk 0:01:02]}  Rbc8 {[%clk 0:01:36]} 28. Qg4 {[%clk 0:00:57]}  h5 {[%clk 0:01:30]} 29. Qe2 {[%clk 0:00:50]}  Rd2 {[%clk 0:01:24]} 30. Qb5 {[%clk 0:00:48]}  Rd4 {[%clk 0:01:11]} 31. Qb7 {[%clk 0:00:42]}  Re8 {[%clk 0:01:01]} 32. Qb5 {[%clk 0:00:40]}  Re6 {[%clk 0:00:51]} 33. Qb8+ {[%clk 0:00:32]}  Kh7 {[%clk 0:00:49]} 34. Qb5 {[%clk 0:00:31]}  Red6 {[%clk 0:00:34]} 35. Qa4 {[%clk 0:00:26]}  f5 {[%clk 0:00:32]} 36. Rb3 {[%clk 0:00:20]}  f4 {[%clk 0:00:28]} 37. Qa8 {[%clk 0:00:10]}  fxg3 {[%clk 0:00:24]} 38. fxg3 {[%clk 0:00:10]}  Rg4 {[%clk 0:00:22]} 39. Rxc3 {[%clk 0:00:07]}  bxc3 {[%clk 0:00:22]} 40. Qf3 {[%clk 0:00:06]}  Rd2 {[%clk 0:00:15]} 41. Qxc3 {[%clk 0:00:06]}  Re2 {[%clk 0:00:12]} 42. Kf1 {[%clk 0:00:04]}  Rh2 {[%clk 0:00:11]} 43. Kg1 {[%clk 0:00:04]}  Rhxh4 {[%clk 0:00:10]} 44. Kg2 {[%clk 0:00:04]}  Be4+ {[%clk 0:00:09]} 45. Kf2 {[%clk 0:00:03]}  Rh2+ {[%clk 0:00:09]} 46. Kg1 {[%clk 0:00:03]}  Rh1+ {[%clk 0:00:07]} 47. Kf2 {[%clk 0:00:04]}  Rxc1 {[%clk 0:00:08]} 48. Qe3 {[%clk 0:00:03]}  Rxc2+ {[%clk 0:00:08]} 49. Ke1 {[%clk 0:00:04]}  Bg6 {[%clk 0:00:08]} 50. Kd1 {[%clk 0:00:03]}  Ra4 {[%clk 0:00:08]} 0-1


[Site "https://www.chess.com"]

[Event "Titled Tuesday Blitz April 4 Late 2023"]
[White "Loiacono, Antonio"]
[Black "Fajdetic, Hrvoje"]
[WhiteFideId "895415"]
[BlackFideId "14501945"]
[WhiteElo "2257"]
[BlackElo "2185"]
[Result "1-0"]
[Round "02"]
[TimeControl "180+2"]
[Date "2023.04.04"]
[WhiteClock "0:01:08"]
[BlackClock "0:01:48"]

1. e4 {[%clk 0:03:00]}  e6 {[%clk 0:02:56]} 2. d4 {[%clk 0:02:58]}  d5 {[%clk 0:02:56]} 3. Nc3 {[%clk 0:02:56]}  dxe4 {[%clk 0:02:56]} 4. Nxe4 {[%clk 0:02:55]}  Nd7 {[%clk 0:02:57]} 5. g3 {[%clk 0:02:53]}  Ngf6 {[%clk 0:02:58]} 6. Nxf6+ {[%clk 0:02:53]}  Nxf6 {[%clk 0:02:59]} 7. Bg2 {[%clk 0:02:53]}  Bd6 {[%clk 0:02:56]} 8. Nf3 {[%clk 0:02:51]}  O-O {[%clk 0:02:57]} 9. O-O {[%clk 0:02:51]}  Rb8 {[%clk 0:02:57]} 10. c4 {[%clk 0:02:36]}  c5 {[%clk 0:02:56]} 11. dxc5 {[%clk 0:02:35]}  Bxc5 {[%clk 0:02:57]} 12. Bf4 {[%clk 0:02:33]}  Ra8 {[%clk 0:02:54]} 13. Qxd8 {[%clk 0:02:24]}  Rxd8 {[%clk 0:02:54]} 14. Rfd1 {[%clk 0:02:12]}  Bd7 {[%clk 0:02:53]} 15. Ne5 {[%clk 0:02:11]}  Be8 {[%clk 0:02:43]} 16. Bxb7 {[%clk 0:01:49]}  Rxd1+ {[%clk 0:02:41]} 17. Rxd1 {[%clk 0:01:48]}  Rb8 {[%clk 0:02:42]} 18. Bf3 {[%clk 0:01:18]}  Rxb2 {[%clk 0:02:41]} 19. Nd3 {[%clk 0:01:17]}  Bxf2+ {[%clk 0:02:12]} 20. Nxf2 {[%clk 0:01:16]}  Rxa2 {[%clk 0:02:13]} 21. Rd8 {[%clk 0:01:13]}  Ra6 {[%clk 0:02:06]} 22. Ne4 {[%clk 0:01:09]}  Kf8 {[%clk 0:01:49]} 23. Bd6+ {[%clk 0:01:07]}  Rxd6 {[%clk 0:01:48]} 24. Rxd6 {[%clk 0:01:08]} 1-0


[Site "https://www.chess.com"]

[Event "Titled Tuesday Blitz April 4 Late 2023"]
[White "Kohler, Aran"]
[Black "Mei, Austin"]
[WhiteFideId "1002856"]
[BlackFideId "30948479"]
[WhiteElo "2297"]
[BlackElo "2125"]
[Result "0-1"]
[Round "02"]
[TimeControl "180+2"]
[Date "2023.04.04"]
[WhiteClock "0:00:05"]
[BlackClock "0:01:39"]

1. d4 {[%clk 0:02:59]}  Nf6 {[%clk 0:03:00]} 2. Nf3 {[%clk 0:02:59]}  g6 {[%clk 0:03:00]} 3. c3 {[%clk 0:02:59]}  Bg7 {[%clk 0:03:01]} 4. Bg5 {[%clk 0:02:59]}  O-O {[%clk 0:03:02]} 5. Nbd2 {[%clk 0:02:58]}  d5 {[%clk 0:03:02]} 6. Bxf6 {[%clk 0:02:56]}  Bxf6 {[%clk 0:03:00]} 7. e4 {[%clk 0:02:56]}  dxe4 {[%clk 0:03:01]} 8. Nxe4 {[%clk 0:02:56]}  Bg7 {[%clk 0:03:01]} 9. Bd3 {[%clk 0:02:56]}  Nc6 {[%clk 0:02:58]} 10. Qb3 {[%clk 0:02:32]}  e5 {[%clk 0:02:57]} 11. d5 {[%clk 0:02:15]}  Na5 {[%clk 0:02:56]} 12. Qa3 {[%clk 0:01:46]}  Qxd5 {[%clk 0:02:52]} 13. Rd1 {[%clk 0:01:28]}  Nc4 {[%clk 0:02:31]} 14. Qb3 {[%clk 0:01:27]}  Nb6 {[%clk 0:02:29]} 15. c4 {[%clk 0:01:21]}  Qa5+ {[%clk 0:02:28]} 16. Nfd2 {[%clk 0:00:57]}  Bg4 {[%clk 0:02:21]} 17. f3 {[%clk 0:00:54]}  Be6 {[%clk 0:02:21]} 18. O-O {[%clk 0:00:51]}  h6 {[%clk 0:02:20]} 19. Nf2 {[%clk 0:00:32]}  Rad8 {[%clk 0:02:16]} 20. a3 {[%clk 0:00:25]}  Na4 {[%clk 0:01:57]} 21. Bc2 {[%clk 0:00:19]}  Nc5 {[%clk 0:01:57]} 22. Qc3 {[%clk 0:00:18]}  Qxc3 {[%clk 0:01:56]} 23. bxc3 {[%clk 0:00:19]}  f5 {[%clk 0:01:57]} 24. Nb3 {[%clk 0:00:16]}  Na4 {[%clk 0:01:47]} 25. Rxd8 {[%clk 0:00:09]}  Rxd8 {[%clk 0:01:47]} 26. Na5 {[%clk 0:00:09]}  Nxc3 {[%clk 0:01:47]} 27. Nxb7 {[%clk 0:00:09]}  Rd2 {[%clk 0:01:48]} 28. Bb3 {[%clk 0:00:08]}  Bf8 {[%clk 0:01:40]} 29. Rc1 {[%clk 0:00:05]}  Ne2+ {[%clk 0:01:39]} 0-1


[Site "https://www.chess.com"]

[Event "Titled Tuesday Blitz April 4 Late 2023"]
[White "Aggelis, Nikolaos"]
[Black "Zampronha, Wladimir Camilo"]
[WhiteFideId "4213220"]
[BlackFideId "2103087"]
[WhiteElo "2189"]
[BlackElo "2176"]
[Result "1/2-1/2"]
[Round "02"]
[TimeControl "180+2"]
[Date "2023.04.04"]
[WhiteClock "0:00:57"]
[BlackClock "0:01:22"]

1. c4 {[%clk 0:03:00]}  Nf6 {[%clk 0:02:59]} 2. Nc3 {[%clk 0:03:00]}  e6 {[%clk 0:02:59]} 3. g3 {[%clk 0:02:57]}  d5 {[%clk 0:02:59]} 4. d4 {[%clk 0:02:55]}  Be7 {[%clk 0:02:58]} 5. Bg2 {[%clk 0:02:55]}  O-O {[%clk 0:02:59]} 6. Nf3 {[%clk 0:02:55]}  dxc4 {[%clk 0:02:57]} 7. O-O {[%clk 0:02:54]}  Nc6 {[%clk 0:02:55]} 8. e4 {[%clk 0:02:46]}  a6 {[%clk 0:02:52]} 9. d5 {[%clk 0:02:44]}  exd5 {[%clk 0:02:52]} 10. exd5 {[%clk 0:02:45]}  Nb4 {[%clk 0:02:51]} 11. Ne5 {[%clk 0:02:45]}  Bf5 {[%clk 0:02:17]} 12. Nxc4 {[%clk 0:02:44]}  Nc2 {[%clk 0:02:10]} 13. Ne3 {[%clk 0:02:41]}  Nxe3 {[%clk 0:02:06]} 14. Bxe3 {[%clk 0:02:41]}  Bd6 {[%clk 0:01:59]} 15. Qb3 {[%clk 0:02:19]}  Qd7 {[%clk 0:01:50]} 16. Rad1 {[%clk 0:02:04]}  Rfe8 {[%clk 0:01:46]} 17. Rd2 {[%clk 0:01:55]}  b6 {[%clk 0:01:45]} 18. Qc4 {[%clk 0:01:46]}  b5 {[%clk 0:01:40]} 19. Qh4 {[%clk 0:01:38]}  b4 {[%clk 0:01:24]} 20. Ne2 {[%clk 0:01:34]}  Ne4 {[%clk 0:01:24]} 21. Rdd1 {[%clk 0:01:26]}  Be7 {[%clk 0:01:23]} 22. Qf4 {[%clk 0:01:07]}  Bd6 {[%clk 0:01:22]} 23. Qh4 {[%clk 0:01:05]}  Be7 {[%clk 0:01:22]} 24. Qf4 {[%clk 0:00:57]}  Bd6 {[%clk 0:01:22]} 25. Qh4 {[%clk 0:00:57]} 1/2-1/2


[Site "https://www.chess.com"]

[Event "Titled Tuesday Blitz April 4 Late 2023"]
[White "Kashefi, Amir Hosein"]
[Black "Wang, Alexander J"]
[WhiteFideId "12557935"]
[BlackFideId "30955270"]
[WhiteElo "2064"]
[BlackElo "2281"]
[Result "0-1"]
[Round "02"]
[TimeControl "180+2"]
[Date "2023.04.04"]
[WhiteClock "0:00:02"]
[BlackClock "0:00:41"]

1. e4 {[%clk 0:02:59]}  c5 {[%clk 0:02:58]} 2. Nf3 {[%clk 0:02:59]}  e6 {[%clk 0:02:56]} 3. g3 {[%clk 0:02:56]}  Nc6 {[%clk 0:02:51]} 4. Bg2 {[%clk 0:02:56]}  Nf6 {[%clk 0:02:46]} 5. d3 {[%clk 0:02:55]}  d5 {[%clk 0:02:45]} 6. Nbd2 {[%clk 0:02:51]}  Be7 {[%clk 0:02:45]} 7. O-O {[%clk 0:02:51]}  O-O {[%clk 0:02:45]} 8. Qe2 {[%clk 0:02:49]}  b6 {[%clk 0:02:39]} 9. Re1 {[%clk 0:02:45]}  Bb7 {[%clk 0:02:38]} 10. e5 {[%clk 0:02:44]}  Nd7 {[%clk 0:02:38]} 11. Nf1 {[%clk 0:02:44]}  d4 {[%clk 0:02:33]} 12. h4 {[%clk 0:02:41]}  Re8 {[%clk 0:02:28]} 13. Bf4 {[%clk 0:02:40]}  Nf8 {[%clk 0:02:27]} 14. N1h2 {[%clk 0:02:37]}  Ng6 {[%clk 0:02:26]} 15. h5 {[%clk 0:02:31]}  Nxf4 {[%clk 0:02:26]} 16. gxf4 {[%clk 0:02:22]}  g6 {[%clk 0:02:22]} 17. Kh1 {[%clk 0:02:14]}  Bf8 {[%clk 0:02:15]} 18. Ng4 {[%clk 0:02:03]}  Bg7 {[%clk 0:02:11]} 19. h6 {[%clk 0:01:54]}  Bh8 {[%clk 0:02:06]} 20. Ng5 {[%clk 0:01:52]}  Rb8 {[%clk 0:01:56]} 21. Rg1 {[%clk 0:01:47]}  Ne7 {[%clk 0:01:44]} 22. Bxb7 {[%clk 0:01:40]}  Rxb7 {[%clk 0:01:44]} 23. Qf3 {[%clk 0:01:14]}  Nd5 {[%clk 0:01:41]} 24. c4 {[%clk 0:01:07]}  dxc3 {[%clk 0:01:40]} 25. bxc3 {[%clk 0:01:05]}  Rc7 {[%clk 0:01:27]} 26. c4 {[%clk 0:01:00]}  Nb4 {[%clk 0:01:26]} 27. Ne4 {[%clk 0:00:51]}  Rf8 {[%clk 0:01:19]} 28. Rg3 {[%clk 0:00:23]}  f5 {[%clk 0:00:59]} 29. exf6 {[%clk 0:00:19]}  Qd4 {[%clk 0:00:46]} 30. Rag1 {[%clk 0:00:14]}  Bxf6 {[%clk 0:00:39]} 31. Ngxf6+ {[%clk 0:00:06]}  Rxf6 {[%clk 0:00:40]} 32. Nxf6+ {[%clk 0:00:02]}  Qxf6 {[%clk 0:00:41]} 0-1


[Site "https://www.chess.com"]

[Event "Titled Tuesday Blitz April 4 Late 2023"]
[White "Koc, Przemyslaw"]
[Black "Kalajzic, Ivan"]
[WhiteFideId "1109081"]
[BlackFideId "14506378"]
[WhiteElo "2161"]
[BlackElo "2203"]
[Result "1-0"]
[Round "02"]
[TimeControl "180+2"]
[Date "2023.04.04"]
[WhiteClock "0:01:32"]
[BlackClock "0:00:07"]

1. Nf3 {[%clk 0:03:00]}  Nc6 {[%clk 0:02:59]} 2. d4 {[%clk 0:03:00]}  d5 {[%clk 0:02:59]} 3. e3 {[%clk 0:03:01]}  Nf6 {[%clk 0:02:56]} 4. b3 {[%clk 0:02:59]}  Bg4 {[%clk 0:02:56]} 5. Be2 {[%clk 0:02:59]}  Bxf3 {[%clk 0:02:55]} 6. Bxf3 {[%clk 0:02:56]}  e5 {[%clk 0:02:56]} 7. dxe5 {[%clk 0:02:56]}  Nxe5 {[%clk 0:02:56]} 8. Be2 {[%clk 0:02:57]}  Bd6 {[%clk 0:02:54]} 9. O-O {[%clk 0:02:56]}  O-O {[%clk 0:02:53]} 10. Bb2 {[%clk 0:02:56]}  c6 {[%clk 0:02:52]} 11. Nd2 {[%clk 0:02:56]}  Qc7 {[%clk 0:02:52]} 12. h3 {[%clk 0:02:56]}  Rae8 {[%clk 0:02:50]} 13. Rc1 {[%clk 0:02:54]}  Ne4 {[%clk 0:02:48]} 14. Nxe4 {[%clk 0:02:53]}  dxe4 {[%clk 0:02:49]} 15. Qd4 {[%clk 0:02:48]}  f5 {[%clk 0:02:45]} 16. Rfd1 {[%clk 0:02:44]}  Rd8 {[%clk 0:02:45]} 17. Qxa7 {[%clk 0:02:32]}  f4 {[%clk 0:02:22]} 18. exf4 {[%clk 0:02:28]}  Rxf4 {[%clk 0:02:21]} 19. Qe3 {[%clk 0:02:29]}  Rdf8 {[%clk 0:02:20]} 20. Rf1 {[%clk 0:02:25]}  b5 {[%clk 0:02:01]} 21. c4 {[%clk 0:02:19]}  bxc4 {[%clk 0:01:44]} 22. Bxc4+ {[%clk 0:02:16]}  Nxc4 {[%clk 0:01:42]} 23. Rxc4 {[%clk 0:02:16]}  Qe7 {[%clk 0:01:36]} 24. Rxc6 {[%clk 0:02:10]}  Bb8 {[%clk 0:01:30]} 25. Bd4 {[%clk 0:02:07]}  Qf7 {[%clk 0:01:22]} 26. Qe2 {[%clk 0:01:59]}  Qd5 {[%clk 0:01:17]} 27. Qc4 {[%clk 0:01:58]}  Qxc4 {[%clk 0:01:15]} 28. Rxc4 {[%clk 0:01:58]}  g5 {[%clk 0:01:07]} 29. Be3 {[%clk 0:01:58]}  R4f5 {[%clk 0:01:06]} 30. Rxe4 {[%clk 0:01:58]}  h5 {[%clk 0:01:05]} 31. a4 {[%clk 0:01:55]}  Bd6 {[%clk 0:00:55]} 32. b4 {[%clk 0:01:54]}  Rb8 {[%clk 0:00:39]} 33. b5 {[%clk 0:01:51]}  Rd5 {[%clk 0:00:33]} 34. Rd4 {[%clk 0:01:44]}  Rxd4 {[%clk 0:00:27]} 35. Bxd4 {[%clk 0:01:45]}  g4 {[%clk 0:00:25]} 36. hxg4 {[%clk 0:01:45]}  hxg4 {[%clk 0:00:25]} 37. g3 {[%clk 0:01:43]}  Kf7 {[%clk 0:00:24]} 38. Re1 {[%clk 0:01:42]}  Ra8 {[%clk 0:00:19]} 39. Ra1 {[%clk 0:01:41]}  Ke6 {[%clk 0:00:18]} 40. a5 {[%clk 0:01:39]}  Kd5 {[%clk 0:00:18]} 41. Be3 {[%clk 0:01:39]}  Ke4 {[%clk 0:00:18]} 42. Kg2 {[%clk 0:01:38]}  Bb4 {[%clk 0:00:15]} 43. a6 {[%clk 0:01:37]}  Bc3 {[%clk 0:00:15]} 44. Ra4+ {[%clk 0:01:36]}  Kd3 {[%clk 0:00:15]} 45. b6 {[%clk 0:01:36]}  Kc2 {[%clk 0:00:09]} 46. b7 {[%clk 0:01:33]}  Rh8 {[%clk 0:00:07]} 47. a7 {[%clk 0:01:32]} 1-0


[Site "https://www.chess.com"]

[Event "Titled Tuesday Blitz April 4 Late 2023"]
[White "Przybylski, Wojciech"]
[Black "Benmesbah, Natacha"]
[WhiteFideId "1117599"]
[BlackFideId "642002"]
[WhiteElo "2222"]
[BlackElo "2263"]
[Result "1-0"]
[Round "02"]
[TimeControl "180+2"]
[Date "2023.04.04"]
[WhiteClock "0:00:09"]
[BlackClock "0:00:12"]

1. e4 {[%clk 0:02:55]}  c5 {[%clk 0:02:58]} 2. Nf3 {[%clk 0:02:53]}  Nc6 {[%clk 0:02:56]} 3. Bb5 {[%clk 0:02:52]}  Nf6 {[%clk 0:02:55]} 4. Nc3 {[%clk 0:02:37]}  Qc7 {[%clk 0:02:53]} 5. O-O {[%clk 0:02:29]}  d6 {[%clk 0:02:52]} 6. h3 {[%clk 0:02:26]}  e5 {[%clk 0:02:51]} 7. Nd5 {[%clk 0:02:19]}  Nxd5 {[%clk 0:02:46]} 8. exd5 {[%clk 0:02:17]}  a6 {[%clk 0:02:46]} 9. Bd3 {[%clk 0:02:05]}  Nb4 {[%clk 0:02:40]} 10. Bc4 {[%clk 0:01:08]}  b5 {[%clk 0:02:38]} 11. Bb3 {[%clk 0:01:08]}  c4 {[%clk 0:02:33]} 12. a3 {[%clk 0:01:08]}  Nxd5 {[%clk 0:02:33]} 13. Ba2 {[%clk 0:01:08]}  Be7 {[%clk 0:02:20]} 14. d3 {[%clk 0:01:08]}  Bb7 {[%clk 0:02:13]} 15. Qe2 {[%clk 0:00:59]}  O-O {[%clk 0:02:10]} 16. dxc4 {[%clk 0:00:58]}  bxc4 {[%clk 0:02:08]} 17. Bxc4 {[%clk 0:00:57]}  Rac8 {[%clk 0:02:06]} 18. Bb3 {[%clk 0:00:56]}  Kh8 {[%clk 0:01:46]} 19. Re1 {[%clk 0:00:55]}  f5 {[%clk 0:01:45]} 20. Bd2 {[%clk 0:00:34]}  Bf6 {[%clk 0:01:41]} 21. c3 {[%clk 0:00:32]}  Rce8 {[%clk 0:01:36]} 22. Rad1 {[%clk 0:00:31]}  e4 {[%clk 0:01:30]} 23. Nd4 {[%clk 0:00:30]}  Be5 {[%clk 0:01:17]} 24. Qh5 {[%clk 0:00:26]}  g6 {[%clk 0:00:58]} 25. Qh4 {[%clk 0:00:25]}  Bf6 {[%clk 0:00:56]} 26. Bg5 {[%clk 0:00:24]}  Bxg5 {[%clk 0:00:42]} 27. Qxg5 {[%clk 0:00:24]}  Qe7 {[%clk 0:00:39]} 28. Qxe7 {[%clk 0:00:19]}  Nxe7 {[%clk 0:00:40]} 29. Ne6 {[%clk 0:00:18]}  Rf6 {[%clk 0:00:38]} 30. Rxd6 {[%clk 0:00:14]}  Nc8 {[%clk 0:00:37]} 31. Rd7 {[%clk 0:00:07]}  Bc6 {[%clk 0:00:35]} 32. Rc7 {[%clk 0:00:04]}  Ba8 {[%clk 0:00:30]} 33. Ng5 {[%clk 0:00:03]}  Ne7 {[%clk 0:00:28]} 34. Rd1 {[%clk 0:00:03]}  h6 {[%clk 0:00:26]} 35. Rdd7 {[%clk 0:00:02]}  hxg5 {[%clk 0:00:24]} 36. Rxe7 {[%clk 0:00:03]}  Rxe7 {[%clk 0:00:25]} 37. Rxe7 {[%clk 0:00:04]}  Bc6 {[%clk 0:00:22]} 38. Rc7 {[%clk 0:00:03]}  f4 {[%clk 0:00:21]} 39. Re7 {[%clk 0:00:04]}  Rd6 {[%clk 0:00:18]} 40. Kh2 {[%clk 0:00:03]}  Bd5 {[%clk 0:00:17]} 41. Re8+ {[%clk 0:00:03]}  Kg7 {[%clk 0:00:16]} 42. Bxd5 {[%clk 0:00:04]}  Rxd5 {[%clk 0:00:16]} 43. Rxe4 {[%clk 0:00:04]}  Rd2 {[%clk 0:00:17]} 44. Re7+ {[%clk 0:00:04]}  Kf6 {[%clk 0:00:17]} 45. Ra7 {[%clk 0:00:04]}  Rxf2 {[%clk 0:00:17]} 46. Rxa6+ {[%clk 0:00:04]}  Kf5 {[%clk 0:00:16]} 47. Ra5+ {[%clk 0:00:04]}  Kf6 {[%clk 0:00:15]} 48. Kg1 {[%clk 0:00:04]}  Rxb2 {[%clk 0:00:14]} 49. c4 {[%clk 0:00:04]}  Rc2 {[%clk 0:00:13]} 50. Rc5 {[%clk 0:00:03]}  Rc3 {[%clk 0:00:13]} 51. a4 {[%clk 0:00:03]}  f3 {[%clk 0:00:09]} 52. gxf3 {[%clk 0:00:03]}  Rxf3 {[%clk 0:00:10]} 53. Kg2 {[%clk 0:00:03]}  Ra3 {[%clk 0:00:09]} 54. a5 {[%clk 0:00:04]}  Ke6 {[%clk 0:00:09]} 55. Rxg5 {[%clk 0:00:03]}  Kd6 {[%clk 0:00:08]} 56. Rxg6+ {[%clk 0:00:03]}  Kc5 {[%clk 0:00:09]} 57. Rg5+ {[%clk 0:00:03]}  Kxc4 {[%clk 0:00:09]} 58. h4 {[%clk 0:00:04]}  Kb4 {[%clk 0:00:06]} 59. h5 {[%clk 0:00:04]}  Ra2+ {[%clk 0:00:06]} 60. Kg3 {[%clk 0:00:04]}  Ra1 {[%clk 0:00:05]} 61. Kf4 {[%clk 0:00:05]}  Rh1 {[%clk 0:00:05]} 62. Kf5 {[%clk 0:00:05]}  Rf1+ {[%clk 0:00:04]} 63. Kg6 {[%clk 0:00:05]}  Rh1 {[%clk 0:00:04]} 64. h6 {[%clk 0:00:05]}  Ka4 {[%clk 0:00:04]} 65. h7 {[%clk 0:00:06]}  Kb4 {[%clk 0:00:04]} 66. Kg7 {[%clk 0:00:06]}  Ka4 {[%clk 0:00:05]} 67. h8=Q {[%clk 0:00:06]}  Rxh8 {[%clk 0:00:05]} 68. Kxh8 {[%clk 0:00:06]}  Kb4 {[%clk 0:00:05]} 69. Kg7 {[%clk 0:00:06]}  Kc4 {[%clk 0:00:06]} 70. Kg8 {[%clk 0:00:06]}  Kb4 {[%clk 0:00:07]} 71. Kf7 {[%clk 0:00:07]}  Kc4 {[%clk 0:00:08]} 72. Kf8 {[%clk 0:00:07]}  Kb4 {[%clk 0:00:09]} 73. Ke7 {[%clk 0:00:08]}  Kc4 {[%clk 0:00:09]} 74. Ke6 {[%clk 0:00:08]}  Kb4 {[%clk 0:00:10]} 75. Kd6 {[%clk 0:00:09]}  Kc4 {[%clk 0:00:11]} 76. Rf5 {[%clk 0:00:09]}  Kb4 {[%clk 0:00:12]} 1-0


[Site "https://www.chess.com"]